Cogmind - Beta 16 @@@ ROGUE MODE // 2025.10.29 @ 22:23:06 // Halloween2019/Abominations Player: MolePlayingNice Result: Destroyed by Lesser Abomination with Etherial Claws Performance ------------- Evolutions (0) 0 Regions Visited (1) 200 Robots Destroyed (0) 0 Value Destroyed (0) 0 Prototype IDs (0) 0 Alien Tech Used (0) 0 Bonus (0) 0 TOTAL SCORE: 200 Bonus ------- None Cogmind --------- Core Integrity 0/250 Matter 295/300 Energy 100/100 System Corruption 0% Temperature Cool (0) Movement Walking (120) Location -10/Materials Parts ------- > --- POWER (1) -------- (None) > --- PROPULSION (2) --- Aluminum Leg > --- UTILITY (2) ------ Medium Storage Unit > --- WEAPON (2) ------- (None) > --- INVENTORY (10) --- Light Ion Engine Aluminum Leg Wheel Compact Wheel Small Storage Unit Medium Matter Pod (0) Medium Matter Pod (0) Medium Matter Pod (0) Peak State ------------ > --- POWER ------------ Ion Engine > --- PROPULSION ------- Light Treads Light Treads > --- UTILITY ---------- Small Storage Unit Medium Storage Unit > --- WEAPON ----------- Medium Laser Light Assault Rifle > --- INVENTORY -------- Light Ion Engine Aluminum Leg Aluminum Leg Wheel Compact Wheel Light Assault Rifle [Rating: 7] Favorites ----------- Power Ion Engine Engine Ion Engine Propulsion Light Treads Treads Light Treads Leg Aluminum Leg Utility Medium Storage Unit Storage Medium Storage Unit Weapon Light Assault Rifle Energy Gun Medium Laser Ballistic Gun Light Assault Rifle Build | -11 -10 ------- Run | Yrd Mat Slots Evolved . | . . Power . | . . Propulsion . | . . Utility . | . . Weapon . | . . Parts Attached 5 | . 5 Power . | . . Engine . | . . Core . | . . Reactor . | . . Propulsion 3 | . 3 Treads 2 | . 2 Leg 1 | . 1 Wheel . | . . Hover . | . . Flight . | . . Utility 1 | . 1 Device . | . . Storage 1 | . 1 Processor . | . . Hackware . | . . Protection . | . . Artifact . | . . Weapon 1 | . 1 Energy Gun . | . . Energy Cannon . | . . Ballistic Gun 1 | . 1 Ballistic Cannon . | . . Launcher . | . . Special Weapon . | . . Impact Weapon . | . . Slashing Weapon . | . . Piercing Weapon . | . . Special Melee Weapon . | . . Unidentified Prototypes . | . . Parts Lost 6 | . 6 Power 1 | . 1 Propulsion 2 | . 2 Utility . | . . Weapon 3 | . 3 Highest Loss Streak 6 | . 6 To Critical Strikes . | . . Average Backups 9 | . 9 Power 1 | . 1 Propulsion 3 | . 3 Utility 3 | . 3 Weapon . | . . Tool/Special . | . . Unused Backups 13 | . 13 Power 2 | . 2 Propulsion 4 | . 4 Utility 5 | . 5 Weapon 2 | . 2 Tool/Special . | . . Average Slot Usage (%) 84 | . 84 Engine 14 | . 14 Treads 26 | . 26 Leg 1 | . 1 Storage 14 | . 14 Energy Gun 12 | . 12 Ballistic Gun 14 | . 14 Peak Build Rating 7 | . 7 Average Rating 6 | . 6 On Entrance 6 | 6 6 Avg Prop Armor Cover (%) . | . . Naked Turns . | . . Heaviest Build 18 | 13 18 Greatest Support 40 | 20 40 Greatest Overweight (x) . | . . Average Overweight (x) . | . . Largest Inventory Capacity 10 | . 10 Average Capacity 9 | . 9 Most Carried 10 | . 10 Average Carried 9 | . 9 Final Capacity 10 | 8 10 Final Carried 8 | 6 8 Class Distribution -------------------- 100% | Mutant Dominant Class ---------------- Mutant | -10/Materials Resources | -11 -10 ----------- Run | Yrd Mat Matter Collected 210 | 200 10 Remotely . | . . Salvage Created . | . . Parts . | . . Haulers Intercepted . | . . Recyclers Shooed . | . . Parts Field Recycled . | . . Retrieved Matter . | . . Parts Self-Destructed . | . . Prevented . | . . Parts Restored . | . . Kills | -11 -10 ------- Run | Yrd Mat Combat Hostiles Destroyed . | . . Classes Destroyed . | . . Best Kill Streak . | . . Combat Bots Only . | . . Max Kills in Single Turn . | . . Gunslinging . | . . Exploded . | . . Melee . | . . Uniques/NPCs Destroyed . | . . Combat | -11 -10 -------- Run | Yrd Mat Hostile Shots Fired 31 | . 31 Missed 4 | . 4 Hits 27 | . 27 Melee 27 | . 27 Critical Strikes 4 | . 4 Damage Taken 930 | . 930 Core 270 | . 270 Absorbed by Shields . | . . Core Remaining (%) 100 | 100 . Volleys Fired 9 | . 9 Largest 2 | . 2 Hottest 70 | . 70 Shots Fired 17 | . 17 Gun 17 | . 17 Cannon . | . . Launcher . | . . Special . | . . Kinetic 14 | . 14 Thermal 3 | . 3 Explosive . | . . Electromagnetic . | . . Robot Hit Streak 15 | . 15 Robot Miss Streak 1 | . 1 Penetration Max . | . . Secondary Targets . | . . Shots Hit Robots 16 | . 16 Core Hits 3 | . 3 Critical Kills . | . . Critical Parts Destroyed . | . . Critical Strikes . | . . Melee Attacks . | . . Impact . | . . Slashing . | . . Piercing . | . . Sneak Attacks . | . . Combat Hostiles . | . . Follow-up Attacks . | . . Damage Inflicted 166 | . 166 Guns 151 | . 151 Cannons . | . . Explosions . | . . Melee . | . . Ramming 15 | . 15 Kinetic 105 | . 105 Thermal 46 | . 46 Explosive . | . . Electromagnetic . | . . Impact . | . . Slashing . | . . Piercing . | . . Highest Corruption . | . . Average Corruption . | . . Corruption Purged . | . . Corruption Blocked . | . . Overload Shots . | . . Overflow Damage . | . . Projectiles . | . . Explosions . | . . Melee . | . . Knockbacks . | . . Impact . | . . Kinetic . | . . Secondary . | . . Self-Inflicted Damage . | . . Shots . | . . Rammed . | . . Targets Rammed 5 | . 5 Kicked 5 | . 5 Crushed . | . . Highest Temperature 50 | . 50 Average Temperature 21 | . 21 Received Heat Transfer . | . . Siege Activations . | . . Martial Activations . | . . Shielding Activations . | . . Robots Disrupted . | . . Combat Hostiles . | . . Robots Corrupted . | . . Combat Hostiles . | . . Parts Fried . | . . Impact Corruptions . | . . Robots Melted . | . . Combat Hostiles . | . . Parts Melted . | . . Heat Transferred 27 | . 27 Parts Sabotaged . | . . Parts Stolen . | . . Parts Stripped . | . . Power Chain Reactions . | . . Alert | -11 -10 ------- Run | Yrd Mat Maximum Alert Level . | . . Low Security (%) 100 | . 100 Level 1 . | . . Level 2 . | . . Level 3 . | . . Level 4 . | . . Level 5 . | . . High Security . | . . Max Security . | . . Peak Influence . | . . Initial . | . . Average . | . . Influence Increases . | . . Influence Decreases . | . . Squads Dispatched 3 | . 3 Investigation 2 | . 2 Extermination . | . . Reinforcement 1 | . 1 Assault . | . . Garrison . | . . Intercept . | . . Searches Triggered . | . . Construction Impeded . | . . Haulers Reinforced . | . . Active Scanning Responses . | . . Cargo Convoy Interrupts . | . . Stealth | -11 -10 --------- Run | Yrd Mat Distress Signals 3 | . 3 Communications Jammed . | . . Distress Signals . | . . Times Spotted 1 | . 1 Peak Tracking Total 2 | . 2 Tactical Retreats . | . . Traps | -11 -10 ------- Run | Yrd Mat Traps Triggered . | . . Indirectly . | . . Trap Hack Attempts . | . . Triggered . | . . Disarmed . | . . Reprogrammed . | . . Reused . | . . Traps Extracted . | . . Installed . | . . Triggered . | . . Machines | -11 -10 ---------- Run | Yrd Mat Machines Disabled . | . . Max in Single Turn . | . . Machines Repaired . | . . Machines Dismantled . | . . Machines Sabotaged . | . . Overloaded Fab Kills . | . . Hacking | -11 -10 --------- Run | Yrd Mat Machines Accessed 2 | . 2 Terminals 2 | . 2 Fabricators . | . . Repair Stations . | . . Recycling Units . | . . Scanalyzers . | . . Garrison Access . | . . Total Hacks 3 | . 3 Successful . | . . Failed 3 | . 3 Catastrophic 2 | . 2 Database Lockouts . | . . Manual 2 | . 2 Terminals 3 | . 3 Fabricators . | . . Repair Stations . | . . Recycling Units . | . . Scanalyzers . | . . Garrison Access . | . . Terminal Hacks . | . . Fabricator Hacks . | . . Repair Station Hacks . | . . Recycling Unit Hacks . | . . Scanalyzer . | . . Garrison Access Hacks . | . . Unauthorized Hacks . | . . Terminals . | . . Fabricators . | . . Repair Stations . | . . Recycling Units . | . . Scanalyzers . | . . Garrison Access . | . . Data Cores Recovered . | . . Used . | . . Hacking Detections 2 | . 2 Full Trace Events 1 | . 1 Feedback Events . | . . Feedback Blocked . | . . Robot Schematics Acquired . | . . Robots Built . | . . Authchips . | . . Time . | . . Total Robot Build Rating . | . . Part Schematics Acquired . | . . Parts Built . | . . Authchips . | . . Time . | . . Total Part Build Rating . | . . Part Studies Acquired . | . . Parts Repaired . | . . Time . | . . Parts Recycled . | . . Recycled Matter . | . . Retrieved Matter . | . . Retrieved Components . | . . Parts Scanalyzed . | . . Part Schematics Acquired . | . . Parts Damaged . | . . Bothacking | -11 -10 ------------ Run | Yrd Mat Used RIF Installer . | . . Robots Hacked . | . . Non-combat . | . . Combat . | . . Robot Hacks Applied . | . . Relay Couplers Released . | . . Fabnet Peak Effective % . | . . Robots Rewired . | . . Allies Hacked . | . . Hacks Repelled . | . . Allies | -11 -10 -------- Run | Yrd Mat Total Allies . | . . Largest Group . | . . Highest-Rated Group . | . . Highest-Rated Ally . | . . Total Orders . | . . Ally Attacks . | . . Total Damage . | . . Kills . | . . Allies Corrupted . | . . Allies Melted . | . . Intel | -11 -10 ------- Run | Yrd Mat Active Infowar (turns) . | . . Robot Analysis Total . | . . Derelict Logs Recovered . | . . Drone Launches . | . . Drone Recoveries . | . . Exploration | -11 -10 ------------- Run | Yrd Mat Turns Passed 177 | . 177 Spaces Moved 86 | 1 85 Core . | . . Treads 85 | . 85 Legs 1 | 1 . Wheels . | . . Hover . | . . Flight . | . . Fastest Speed 120 | 120 160 Average Speed 159 | 120 160 Slowest Speed 160 | 120 160 Overloaded Moves . | . . Propulsion Burnouts . | . . Robots Hopped . | . . Potential Cave-ins . | . . Cave-ins Triggered . | . . Exploration Rate (%) 12 | 2 22 Regions Visited 1 Branch Regions . Pre-discovered Areas . | . . Known Exits Taken . | . . Unknown Exits Taken 1 | 1 . Scrap Searched . | . . Spaces Dug . | . . Terrain Destroyed . | . . Melee . | . . Projectile . | . . AOE . | . . Terrain Rammed . | . . Walls Destroyed . | . . Machines Disabled . | . . Actions | -11 -10 --------- Run | Yrd Mat Total 109 | . 109 Wait 1 | . 1 Move 85 | . 85 Hop . | . . Pick Up 3 | . 3 Fast Attach 1 | . 1 Attach 2 | . 2 Detach 1 | . 1 Swap 2 | . 2 Drop . | . . Fire 9 | . 9 Melee . | . . Ram . | . . Kick 5 | . 5 Crush . | . . Escape Stasis . | . . Rewire . | . . Trap . | . . Miscellaneous . | . . Route ------- -11/Scrapyard -10/Materials History --------- Turn | Location | Event 1 | -11/Scrapyard | Discovered new exit (range 0) 1 | -11/Scrapyard | Entered Materials 162 | -10/Materials | Core integrity fell below 50% 176 | -10/Materials | Core integrity fell below 20% 178 | -10/Materials | Destroyed by Lesser Abomination with Etherial Claws Last Messages --------------- 00167_ Lesser Abomination feeds off Hungry Anomaly, taking Med. Storage Unit, Wheel. 00167_ Hungry Anomaly eats Wheel. 00167_ Lgt. Treads destroyed. 00168_ Hungry Anomaly eats Sml. Storage Unit. 00169_ Hungry Anomaly eats Med. Matter Pod. 00169_ Lgt. Assault Rifle destroyed. 00172_ Lgt. Treads destroyed. 00172_ Kicked Lesser Abomination. 00173_ Critical hit (Intensify). 00173_ Ion Engine destroyed. 00174_ Kicked Lesser Abomination. 00175_ Critical hit (Intensify). 00175_ Kicked Lesser Abomination. 00177_ Lesser Abomination spits out Sml. Storage Unit. 00177_ Lesser Abomination feeds off Hungry Anomaly, taking Lrg. Storage Unit. 00177_ Hungry Anomaly eats Sml. Storage Unit. 00177_ Kicked Lesser Abomination. Map ----- +----------------------------------------------------+ | ?????????????????????????????????????????????????? | | ?????????????????????????????????????????????????? | | ?????????????????????????????????????????????????? | | ?????????????????????????????????????????????????? | | ?????????????????????????????????????????????????? | | ?????????????????????????????????????????????????? | | ?????????????????????????????????????????????????? | | ?????????????????????????????????????????????????? | | ?????????????????????????????????????????????????? | | ?????????????????????????????????????????????????? | | ?????????????????????????????????????????????????? | | ?????????????????????????????????????????????????? | | ?????????????????????????????????????????????????? | | ?????????????????????????????????????????????????? | | ?????????????????????????###?????#####???????????? | | ????????????????????# ? ??? #???????????? | | ????????????????????# # #???????????? | | ????????????????????# """ """ # #???????????? | | ????????????????????# """ """ # #???????????? | | ????????????????????# """ """ # """ #???????????? | | ????????????#???????# # """ #???????????? | | ????????????# ??????# ?# """ #???????????? | | ????????????# ??????? ????? ????????????? | | ?????????????# ?#######;###???###+###???????????? | | ?????????????# #"T"# ##### #???????????? | | ?????????? + A@ #???????????? | | ?????????????# T #???????????? | | ?????????????# """ """ #???????????? | | ?????????????# """ """ ##### #???????????? | | ?????????????# """ """ #???## ##???????????? | | ?????????????# #????# #????????????? | | ?????????????# #????# #????????????? | | ????????????? n n #????# #????????????? | | ?????????????######+##### ##????# #????????????? | | ????????????????????????# #?######+######????????? | | ????????????????????????#%#?# #????????? | | ????????????????????????# #?# #????????? | | ????????????????????????# #?# #????????? | | ????????????????????????# #?# #????????? | | ????????????????????????#%### " """"" #????????? | | ????????????????????????# + """"""""" #????????? | | ????????????????????????# ### """ """ #????????? | | ????????????????????????# #?#############????????? | | ?????????????????######?# ######################## | | ?????????????????# # # | | ?????????????????# """ # # | | ?????????????????# """ + # | | ?????????????????#! """ #+###+###############+#### | | ?????????????????# # #???????# # | | ?????????????????# ?# """"""" #???????# # | +----------------------------------------------------+ Best States ------------- Heat Dissipation 25 Energy Generation 10 Energy Capacity 250 Matter Stores 280 Matter Capacity 300 Sight Range 16 Terrain Scan Density 10 Evasion (%) 40 Recoil Reduction 2 Item Schematics ----------------- None Robot Schematics ------------------ None Fabricated ------------ Nothing Repaired ---------- Nothing Studied --------- None Alien Tech Used ----------------- None Achievements -------------- None Challenges ------------ None Game ------ Seed HackingDynamicCalibrator Manual? 0 Play Time 00:04:16 Cumulative 340.9 hours Start 2025.10.29 @ 22:20:09 End 2025.10.29 @ 22:23:06 Sessions 1 Manual Loads 0 Difficulty Rogue Special Mode Halloween2019/Abominations Game No. 112 Rogue 112 Adventurer 0 Explorer 0 Win Type - Total 7 Types 3/0/3/0/0/0/0/0/0/1 Lore% 76 Gallery% 83 Achievement% 65 Wizard Run 0 Options --------- Layout 1 ASCII 0 Keyboard 1 Movement Arrows Keybinds 0 Fullscreen 1 Font 24/Smallcaps Map View 50x35 Zoom Use 0% Tactical HUD 1 Map Filters NONE Filters NONE Steam 1 RUN: 099d8cf3-9a31-4039-ab9e-5ad051ed31b9